fUSD/lending_fUSD_20240109
["ID","MTS","AMOUNT","RATE_DAILY","PERIOD"]
[310990987,1704843031774,-302.84681763,0.00025,2]
[310990988,1704843031783,-499.99,0.00025079,2]
[310990989,1704843031792,-150.99,0.00025079,2]
[310990990,1704843031801,-1154.62,0.00025079,2]
[310990991,1704843031811,-4926.24,0.00025079,2]
[310990992,1704843031823,-202.33,0.00025188,2]
[310990993,1704843031832,-343.68553093,0.00026225,2]
[310990994,1704843031842,-19091.64966794,0.000267,2]
[310990995,1704843031851,-278.28,0.00026815,2]
[310990996,1704843031861,-750.0,0.000274,2]
[310990997,1704843031871,-216.96084575,0.00028,2]
[310990998,1704843031881,-170.0,0.000283,2]
[310990999,1704843031890,-29643.0,0.000285,2]
[310991000,1704843031899,-156.06,0.00028799,2]
[310991001,1704843031909,-5331.2,0.00028811,2]
[310991002,1704843031918,-23900.0,0.00028839,2]
[310991003,1704843031927,-250.0,0.00028846,2]
[310991004,1704843031936,-500.0,0.00028847,2]
[310991005,1704843031947,-250.0,0.00028872,2]
[310991006,1704843031956,-150.0,0.00028878,2]
[310991007,1704843031966,-3077.88,0.00028885,2]
[310991008,1704843031975,-150.0,0.00028901,2]
[310991009,1704843031984,-250.0,0.00028922,2]
[310991010,1704843031992,-182.2,0.00028961,2]
[310991011,1704843032007,-400.0,0.0002899,2]
[310991012,1704843032016,-1040.00347398,0.00029,2]
[310991013,1704843032322,-290.41,0.00029019,2]
[310991014,1704843032357,-278.28,0.00029079,2]
[310991015,1704843032367,-152.29,0.00029083,2]
[310991016,1704843032376,-7062.86,0.00029182,2]
[310991017,1704843032389,-155.43,0.0002923,2]
[310991018,1704843032398,-152.29,0.00029236,2]
[310991019,1704843032408,-155.43,0.0002931,2]
[310991020,1704843032417,-158.3,0.00029318,2]
[310991021,1704843032427,-151.54,0.00029346,2]
[310991022,1704843032436,-152.29,0.00029389,2]
[310991023,1704843032445,-155.43,0.0002939,2]
[310991024,1704843032454,-155.43,0.0002947,2]
[310991025,1704843032463,-152.29,0.00029542,2]
[310991026,1704843032472,-155.43,0.0002955,2]
[310991027,1704843032482,-343.68553093,0.00029596,2]
[310991028,1704843032491,-155.43,0.0002963,2]
[310991029,1704843032503,-152.29,0.00029696,2]
[310991030,1704843032512,-155.43,0.00029711,2]
[310991031,1704843032523,-155.43,0.00029791,2]
[310991032,1704843032532,-150.0,0.000298,2]
[310991033,1704843032540,-152.29,0.00029849,2]
[310991034,1704843032550,-155.43,0.00029871,2]
[310991035,1704843032559,-155.43,0.00029951,2]
[310991036,1704843032568,-5884.42052041,0.0003,4]
[310991037,1704843032577,-150.0,0.0003,2]
[310991038,1704843032586,-677.34550316,0.0003,4]
[310991039,1704843032595,-155.0,0.0003,2]
[310991040,1704843032605,-1978.25492112,0.0003,2]
[310991041,1704843032614,-152.29,0.00030002,2]
[310991042,1704843032623,-155.43,0.00030031,2]
[310991043,1704843032634,-155.43,0.00030111,2]
[310991044,1704843032644,-152.29,0.00030155,2]
[310991045,1704843032653,-155.43,0.00030192,2]
[310991046,1704843032663,-155.43,0.00030272,2]
[310991047,1704843032673,-152.29,0.00030308,2]
[310991048,1704843032683,-156.31473598,0.00030349,2]
[310991049,1704843032693,-155.43,0.00030352,2]
[310991050,1704843032703,-155.43,0.00030432,2]
[310991051,1704843032712,-152.29,0.00030461,2]
[310991052,1704843032721,-156.06,0.00030511,2]
[310991053,1704843032730,-155.43,0.00030512,2]
[310991054,1704843032740,-155.43,0.00030592,2]
[310991055,1704843032752,-152.29,0.00030614,2]
[310991056,1704843032761,-155.43,0.00030673,2]
[310991057,1704843032771,-1358.92,0.00030695,2]
[310991058,1704843032781,-155.43,0.00030753,2]
[310991059,1704843032790,-152.29,0.00030767,2]
[310991060,1704843032799,-152.29,0.0003092,2]
[310991061,1704843032809,-150.0,0.00031,2]
[310991062,1704843032818,-152.29,0.00031073,2]
[310991063,1704843032827,-152.29,0.00031226,2]
[310991064,1704843032837,-278.28,0.00031343,2]
[310991065,1704843032846,-152.29,0.00031379,2]
[310991066,1704843032855,-152.29,0.00031532,2]
[310991067,1704843032864,-152.29,0.00031685,2]
[310991068,1704843032874,-153.84,0.00031752,2]
[310991069,1704843032883,-157.41,0.000318,2]
[310991070,1704843032893,-54980.8169462,0.000318,2]
[310991071,1704843032903,-152.29,0.00031839,2]
[310991072,1704843032913,-246.27687396,0.000319,2]
[310991073,1704843032935,-716.9814789,0.000319,3]
[310991074,1704843032946,-6108.97966069,0.00031978,2]
[310991075,1704843032956,-185.09475924,0.0003198,2]
[310991076,1704843032966,-1000.0,0.00031988,2]
[310991077,1704843032976,-157859.53599407,0.0003199,2]
[310991078,1704843033088,-4620.83846657,0.0003199,2]
[310991079,1704843033100,-2304.55,0.0003199,2]
[310991080,1704843033121,-250.0,0.0003199,2]
[310991081,1704843033133,-939.02969699,0.0003199,2]
[310991082,1704843033145,-565.73454976,0.0003199,2]
[310991083,1704843033157,-7722.83906939,0.0003199,2]
[310991084,1704843033169,-9006.86204422,0.0003199,2]
[310991085,1704843033179,-152.29,0.00031992,2]
[310991086,1704843033189,-41856.34298315,0.00032,2]
[310991087,1704843033201,-5189.94905558,0.00032,2]
[310991088,1704843033213,-255.8730365,0.00032,2]
[310991089,1704843033246,-426.82466849,0.00032,2]
[310991090,1704843033258,-874.03509462,0.00032,2]
[310991091,1704843033271,-783.78704333,0.00032,2]
[310991092,1704843033287,-558.42679871,0.00032,2]
[310991114,1704843037643,-203.0,0.00028509,2]
[310991115,1704843037654,-203.0,0.00030009,4]
[310991116,1704843037663,-203.0,0.00031508,7]
[310991117,1704843037673,-197.67677137,0.00031997,2]
[310991118,1704843037683,-4896.22325613,0.00032,2]
[310991119,1704843037694,-355.98000004,0.00032,2]
[310991120,1704843037719,-2713.4001,0.00032,2]
[310991121,1704843037758,-37723.18462071,0.00032,2]
[310991122,1704843037770,-27012.12405636,0.00032,2]
[310991123,1704843037782,-54132.87710795,0.00032,2]
[310991124,1704843037794,-138448.03765437,0.00032,2]
[310991125,1704843037806,-73093.09861861,0.00032,2]
[310991126,1704843038142,-1173.933,0.00032,2]
[310991127,1704843038156,-298950.23516359,0.00032,2]
[310991129,1704843038166,-150.0,0.00032,2]
[310991131,1704843038177,-158.13580433,0.00032,4]
[310991133,1704843038187,-156.06,0.00032223,2]
[310991135,1704843038197,-400.0,0.00032613,2]
[310991137,1704843038207,-716.98147879,0.00032742,4]
[310991138,1704843038217,-530.29226633,0.00032876,2]
[310991141,1704843038228,-602.39,0.00032877,15]
[310991143,1704843038245,-200.0,0.00033,2]
[310991144,1704843038256,-203.0,0.00033008,10]
[310991147,1704843038265,-153.84,0.00033195,2]
[310991149,1704843038276,-170.31,0.0003323,2]
[310991151,1704843038287,-575.14,0.000335,2]
[310991153,1704843038298,-575.14,0.000335,2]
[310991155,1704843038307,-575.14,0.000335,2]
[310991157,1704843038319,-575.14,0.000335,2]
[310991159,1704843038329,-575.14,0.000335,2]
[310991161,1704843038338,-575.14,0.000335,2]
[310991163,1704843038347,-575.14,0.000335,2]
[310991165,1704843038358,-575.14,0.000335,2]
[310991167,1704843038368,-575.14,0.000335,2]
[310991169,1704843038379,-575.14,0.000335,2]
[310991171,1704843038388,-575.14,0.000335,2]
[310991173,1704843038398,-575.14,0.000335,2]
[310991175,1704843038408,-575.14,0.000335,2]
[310991177,1704843038417,-575.14,0.000335,2]
[310991178,1704843038426,-575.14,0.000335,2]
[310991181,1704843038438,-575.14,0.000335,2]
[310991182,1704843038447,-575.14,0.000335,2]
[310991184,1704843038457,-575.14,0.000335,2]
[310991186,1704843038468,-575.14,0.000335,2]
[310991188,1704843038477,-575.14,0.000335,2]
[310991190,1704843038487,-716.98147879,0.00033584,5]
[310991193,1704843038499,-278.28,0.00033607,2]
[310991195,1704843038510,-156.06,0.00033936,2]
[310991197,1704843038520,-1000.0,0.00034,4]
[310991198,1704843038530,-152.0,0.00034074,3]
[310991201,1704843038542,-716.98147879,0.00034425,6]
[310991202,1704843038553,-203.0,0.00034508,13]
[310991205,1704843038564,-691.327926,0.0003452,2]
[310991207,1704843038577,-153.84,0.00034639,2]
[310991209,1704843038587,-180.0,0.00034658,2]
[310991211,1704843038598,-1036.99189,0.00034794,2]
[310991213,1704843038610,-158.3,0.00034834,2]
[310991215,1704843038622,-527.13211423,0.000349,2]
[310991217,1704843038632,-527.13211423,0.000349,2]
[310991219,1704843038642,-1382.655853,0.00034931,2]
[310991221,1704843038652,-154.71585316,0.0003498,3]
[310991223,1704843038662,-100000.0,0.00035,2]
[310991224,1704843038672,-157.41,0.00035,2]
[310991225,1704843038682,-157.41,0.00035,2]
[310991226,1704843038693,-617.90544107,0.00035,4]
[310991227,1704843038702,-446.78845482,0.00035,4]
[310991228,1704843038713,-450.0,0.0003502,3]
[310991229,1704843038722,-1728.319817,0.00035068,2]
[310991230,1704843038731,-716.98147879,0.00035267,7]
[310991231,1704843038741,-2419.647744,0.00035342,2]
[310991232,1704843038752,-150.0,0.00035616,2]
[310991233,1704843038761,-300.0,0.00035616,7]
[310991234,1704843038770,-450.0,0.00035616,12]
[310991235,1704843038779,-360.15754575,0.00035616,17]
[310991236,1704843038788,-586.032175,0.00035616,2]
[310991238,1704843038801,-152.08,0.00035616,2]
[310991240,1704843038810,-156.06,0.00035648,2]
[310991242,1704843038820,-527.13211423,0.0003565,2]
[310991244,1704843038829,-372.4011,0.00035848,4]
[310991246,1704843038839,-586.032175,0.00035855,2]
[310991248,1704843038850,-278.28,0.0003587,2]
[310991250,1704843038861,-456.4011,0.00035948,4]
[310991252,1704843038871,-100000.0,0.00036,2]
[310991254,1704843038881,-203.0,0.00036007,15]
[310991256,1704843038891,-456.4011,0.00036048,6]
[310991258,1704843038900,-153.84,0.00036082,2]
[310991260,1704843038910,-161.72403564,0.00036089,2]
[310991262,1704843038920,-586.032175,0.00036094,2]
[310991264,1704843038929,-716.98147879,0.00036109,8]
[310991266,1704843038939,-456.4011,0.00036148,6]
[310991268,1704843038949,-1081.54230044,0.00036152,8]
[310991270,1704843038959,-400.0,0.00036237,2]
[310991272,1704843038968,-456.4011,0.00036248,6]
[310991274,1704843038977,-575.14,0.000363,3]
[310991276,1704843038987,-575.14,0.000363,3]
[310991278,1704843038996,-575.14,0.000363,3]
[310991280,1704843039008,-575.14,0.000363,3]
[310991282,1704843039018,-575.14,0.000363,3]
[310991284,1704843039027,-575.14,0.000363,3]
[310991286,1704843039037,-575.14,0.000363,3]
[310991288,1704843039046,-575.14,0.000363,3]
[310991290,1704843039055,-575.14,0.000363,3]
[310991292,1704843039064,-575.14,0.000363,3]
[310991294,1704843039074,-575.14,0.000363,3]
[310991296,1704843039085,-575.14,0.000363,3]
[310991298,1704843039094,-575.14,0.000363,3]
[310991300,1704843039103,-575.14,0.000363,3]
[310991302,1704843039113,-575.14,0.000363,3]
[310991304,1704843039122,-575.14,0.000363,3]
[310991306,1704843039133,-575.14,0.000363,3]
[310991308,1704843039142,-575.14,0.000363,3]
[310991310,1704843039151,-575.14,0.000363,3]
[310991312,1704843039160,-575.14,0.000363,3]
[310991314,1704843039169,-586.032175,0.00036332,2]
[310991316,1704843039178,-456.4011,0.00036348,6]
[310991318,1704843039187,-197.67677137,0.00036397,2]
[310991320,1704843039197,-7404.08196437,0.000364,2]
[310991322,1704843039206,-7404.08196435,0.000364,2]
[310991324,1704843039216,-7404.08196435,0.000364,2]
[310991326,1704843039225,-7404.08196435,0.000364,2]
[310991328,1704843039234,-7404.08196435,0.000364,2]
[310991330,1704843039243,-7404.08196435,0.000364,2]
[310991332,1704843039254,-7404.08196435,0.000364,2]
[310991334,1704843039263,-7404.08196435,0.000364,2]
[310991336,1704843039271,-7404.08196435,0.000364,2]
[310991338,1704843039280,-7404.08196435,0.000364,2]
[310991340,1704843039290,-7404.08196435,0.000364,2]
[310991342,1704843039299,-7404.08196435,0.000364,2]
[310991344,1704843039308,-7404.08196435,0.000364,2]
[310991346,1704843039318,-7404.08196435,0.000364,2]
[310991348,1704843039327,-7404.08196435,0.000364,2]
[310991350,1704843039336,-7404.08196435,0.000364,2]
[310991352,1704843039345,-456.4011,0.00036448,6]
[310991354,1704843039355,-456.4011,0.00036548,6]
[310991356,1704843039364,-586.032175,0.00036571,2]
[310991358,1704843039373,-602.39,0.00036613,15]
[310991360,1704843039383,-456.4011,0.00036648,6]
[310991363,1704843039392,-456.4011,0.00036748,6]
[310991365,1704843039401,-586.032175,0.00036809,2]
[310991367,1704843039411,-456.4011,0.00036848,6]
[310991369,1704843039420,-456.4011,0.00036948,6]
[310991371,1704843039430,-716.98147879,0.00036951,10]
[310991373,1704843039439,-1000.0,0.00036986,2]
[310991375,1704843039449,-100000.0,0.00037,2]
[310991377,1704843039458,-667.33870884,0.00037,7]
[310991379,1704843039468,-155.0,0.00037,2]
[310991381,1704843039477,-456.4011,0.00037048,6]
[310991383,1704843039487,-586.032175,0.00037048,2]
[310991385,1704843039496,-3317.93,0.00037142,10]
[310991387,1704843039507,-456.4011,0.00037148,6]
[310991389,1704843039517,-1937.236888,0.00037152,30]
[310991391,1704843039526,-304.856372,0.00037152,30]
[310991393,1704843039535,-50600.0,0.00037152,120]
[310991395,1704843039545,-3180.6266193,0.00037152,30]
[310991397,1704843039554,-1965.399855,0.00037152,30]
[310991399,1704843039563,-246.27687328,0.00037158,2]
[310991401,1704843039573,-456.4011,0.00037248,6]
[310991403,1704843039582,-586.032175,0.00037286,2]
[310991405,1704843039591,-456.4011,0.00037348,6]
[310991407,1704843039600,-156.06,0.0003736,2]
[310991409,1704843039609,-456.4011,0.00037448,6]
[310991411,1704843039618,-203.0,0.00037507,18]
[310991413,1704843039627,-527.13211423,0.00037525,2]
[310991415,1704843039637,-586.032175,0.00037525,2]
[310991417,1704843039646,-153.84,0.00037525,2]
[310991419,1704843039655,-456.4011,0.00037548,8]
[310991421,1704843039664,-151.16643292,0.00037553,7]
[310991423,1704843039673,-152.0,0.00037589,4]
[310991425,1704843039683,-157.47643918,0.0003759,7]
[310991427,1704843039692,-3932.86119969,0.00037595,8]
[310991430,1704843039702,-187.96913655,0.00037595,5]
[310991432,1704843039711,-176.94797933,0.00037644,5]
[310991434,1704843039720,-456.4011,0.00037648,8]
[310991436,1704843039730,-456.4011,0.00037748,8]
[310991438,1704843039738,-586.032175,0.00037763,2]
[310991440,1704843039747,-716.98147879,0.00037793,11]
[310991442,1704843039757,-353.89595865,0.00037794,5]
[310991444,1704843039766,-456.4011,0.00037848,8]
[310991446,1704843039775,-409.0,0.0003789,3]
[310991448,1704843039784,-156.31473598,0.000379,2]
[310991450,1704843039793,-297.61124638,0.000379,2]
[310991452,1704843039803,-661697.743176,0.000379,2]
[310991454,1704843039812,-456.4011,0.00037948,8]
[310991456,1704843039822,-100000.0,0.00038,2]
[310991458,1704843039831,-2000.0,0.00038,21]
[310991460,1704843039840,-153.18652826,0.00038,2]
[310991462,1704843039849,-153.18652826,0.00038,2]
[310991464,1704843039858,-153.18652826,0.00038,2]
[310991466,1704843039867,-153.18652826,0.00038,2]
[310991468,1704843039877,-153.18652826,0.00038,2]
[310991470,1704843039886,-1658.77813122,0.00038,4]
[310991472,1704843039895,-586.032175,0.00038002,2]
[310991474,1704843039904,-456.4011,0.00038048,8]
[310991476,1704843039914,-278.28,0.00038134,2]
[310991478,1704843039923,-456.4011,0.00038148,8]
[310991480,1704843039932,-9254.14330769,0.00038151,12]
[310991482,1704843039941,-17892.75842571,0.00038151,13]
[310991484,1704843039950,-8946.37921285,0.00038151,13]
[310991486,1704843039959,-80791.37567214,0.00038151,13]
[310991488,1704843039968,-157.47643918,0.00038182,7]
[310991490,1704843039977,-157.41,0.000382,3]
[310991492,1704843039986,-157.41,0.000382,3]
[310991494,1704843039995,-586.032175,0.00038241,2]
[310991496,1704843040007,-456.4011,0.00038248,8]
[310991498,1704843040016,-170.31,0.00038287,2]
[310991500,1704843040026,-456.4011,0.00038348,8]
[310991502,1704843040035,-165.3229978,0.00038356,7]
[310991505,1704843040044,-161.93002219,0.00038356,7]
[310991508,1704843040053,-6118.36237381,0.000384,2]
[310991510,1704843040062,-456.4011,0.00038448,8]
[310991512,1704843040071,-586.032175,0.00038479,2]
[310991514,1704843040080,-4151.06518264,0.000385,7]
[310991586,1704843040819,-40676.21965934,0.000385,7]
[310991587,1704843040828,-456.4011,0.00038548,8]
[310991589,1704843040838,-625.0,0.000386,2]
[310991591,1704843040847,-155.90564939,0.00038606,7]
[310991593,1704843040856,-716.98147879,0.00038635,12]
[310991595,1704843040865,-456.4011,0.00038648,8]
[310991597,1704843040874,-150.0,0.00038701,7]
[310991599,1704843040883,-586.032175,0.00038718,2]
[310991601,1704843040892,-151.37985866,0.00038735,7]
[310991603,1704843040901,-456.4011,0.00038748,8]
[310991605,1704843040910,-14987.45308177,0.000388,30]
[310991607,1704843040920,-22875.84468121,0.000388,4]
[310991609,1704843040929,-152.22288178,0.0003881,7]
[310991611,1704843040938,-456.4011,0.00038848,8]
[310991613,1704843040948,-456.4011,0.00038948,8]
[310991615,1704843040957,-586.032175,0.00038956,2]
[310991617,1704843040966,-153.84,0.00038969,2]
[310991619,1704843040975,-281.54706286,0.0003898,2]
[310991621,1704843040984,-197.67677137,0.00038997,2]
[310991623,1704843040993,-100000.0,0.00039,2]
[310991624,1704843041003,-9734.76321855,0.00039,2]
[310991626,1704843041012,-2296.024999,0.00039,120]
[310991628,1704843041021,-196.69246782,0.00039,4]
[310991631,1704843041031,-575.14,0.00039,3]
[310991633,1704843041041,-575.14,0.00039,3]
[310991634,1704843041050,-575.14,0.00039,3]
[310991637,1704843041060,-575.14,0.00039,3]
[310991639,1704843041069,-575.14,0.00039,3]
[310991641,1704843041079,-575.14,0.00039,3]
[310991643,1704843041088,-575.14,0.00039,3]
[310991645,1704843041098,-575.14,0.00039,3]
[310991647,1704843041107,-575.14,0.00039,3]
[310991649,1704843041116,-575.14,0.00039,3]
[310991651,1704843041125,-575.14,0.00039,3]
[310991653,1704843041134,-575.14,0.00039,3]
[310991655,1704843041146,-575.14,0.00039,3]
[310991657,1704843041155,-575.14,0.00039,3]
[310991659,1704843041164,-575.14,0.00039,3]
[310991661,1704843041173,-575.14,0.00039,3]
[310991663,1704843041182,-575.14,0.00039,3]
[310991665,1704843041191,-575.14,0.00039,3]
[310991667,1704843041200,-575.14,0.00039,3]
[310991669,1704843041210,-575.14,0.00039,3]
[310991671,1704843041220,-203.0,0.00039006,21]
[310991673,1704843041229,-1767.99095544,0.00039035,4]
[310991675,1704843041238,-398.55872022,0.00039036,4]
[310991677,1704843041248,-150.0,0.00039046,7]
[310991679,1704843041258,-456.4011,0.00039048,8]
[310991681,1704843041267,-156.06,0.00039073,2]
[310991683,1704843041276,-456.4011,0.00039148,8]
[310991685,1704843041286,-586.032175,0.00039195,2]
[310991687,1704843041295,-456.4011,0.00039248,8]
[310991689,1704843041304,-155.7952096,0.00039259,2]
[310991691,1704843041313,-456.4011,0.00039348,8]
[310991693,1704843041322,-150.0,0.00039392,7]
[310991695,1704843041331,-527.13211423,0.000394,2]
[310991697,1704843041340,-586.032175,0.00039433,2]
[310991699,1704843041349,-620.48589227,0.00039447,2]
[310991701,1704843041359,-3185.21463735,0.00039447,2]
[310991703,1704843041368,-456.4011,0.00039448,8]
[310991705,1704843041378,-716.98147879,0.00039476,13]
[310991707,1704843041387,-456.4011,0.00039548,8]
[310991709,1704843041396,-175.3,0.00039569,2]
[310991711,1704843041405,-689.995148,0.00039588,2]
[310991713,1704843041414,-171.288262,0.00039588,2]
[310991715,1704843041424,-500.0,0.000396,3]
[310991717,1704843041433,-456.4011,0.00039648,8]
[310991719,1704843041442,-586.032175,0.00039672,2]
[310991721,1704843041451,-500.0,0.00039725,10]
[310991723,1704843041460,-456.4011,0.00039748,8]
[310991725,1704843041470,-1000.0,0.000398,2]
[310991727,1704843041479,-980.48609171,0.000398,4]
[310991729,1704843041489,-456.4011,0.00039848,8]
[310991731,1704843041498,-400.0,0.00039861,2]
[310991733,1704843041508,-7500.0,0.000399,2]
[310991735,1704843041517,-275.7068033,0.000399,4]
[310991737,1704843041527,-586.032175,0.00039911,2]
[310991739,1704843041536,-456.4011,0.00039948,8]
[310991742,1704843041547,-703.71081656,0.0003998,3]
[310991744,1704843041556,-214.0,0.0003999,3]
[310991746,1704843041565,-100000.0,0.0004,3]
[310991747,1704843041574,-1057.70156371,0.0004,10]
[310991750,1704843041583,-54181.40254981,0.0004,4]
[310991752,1704843041592,-600.0,0.0004,41]
[310991754,1704843041601,-2000.0,0.0004,14]
[310991755,1704843041610,-2000.0,0.0004,30]
[310991758,1704843041619,-2000.0,0.0004,30]
[310991760,1704843041628,-2000.0,0.0004,30]
[310991762,1704843041637,-2000.0,0.0004,30]
[310991764,1704843041646,-1815.0,0.0004,30]
[310991766,1704843041656,-303236.32,0.0004,2]
[310991768,1704843041665,-1688.0,0.0004,7]
[310991770,1704843041674,-1688.0,0.0004,7]
[310991772,1704843041683,-1688.0,0.0004,7]
[310991774,1704843041692,-1688.0,0.0004,7]
[310991776,1704843041701,-1688.0,0.0004,7]
[310991778,1704843041710,-617.44681957,0.0004,4]
[310991780,1704843041719,-1688.0,0.0004,7]
[310991782,1704843041728,-1688.0,0.0004,7]
[310991784,1704843041738,-1702.3,0.0004,7]
[310991786,1704843041747,-272.7969938,0.0004,10]
[310991788,1704843041757,-249.26585059,0.0004,120]
[310991790,1704843041766,-6278.09481333,0.0004,4]
[310991792,1704843041775,-6808.57416919,0.0004,4]
[310991794,1704843041785,-150.92,0.0004,2]
[310991796,1704843041794,-150.92,0.0004,2]
[310991798,1704843041803,-150.92,0.0004,2]
[310991800,1704843041813,-150.92,0.0004,2]
[310991802,1704843041823,-150.92,0.0004,2]
[310991804,1704843041832,-150.92,0.0004,2]
[310991806,1704843041841,-150.92,0.0004,2]
[310991808,1704843041851,-150.92,0.0004,2]
[310991810,1704843041861,-150.92,0.0004,2]
[310991812,1704843041870,-150.92,0.0004,2]
[310991814,1704843041879,-150.92,0.0004,2]
[310991816,1704843041889,-150.92,0.0004,2]
[310991818,1704843041898,-150.92,0.0004,2]
[310991820,1704843041907,-150.92,0.0004,2]
[310991822,1704843041916,-150.92,0.0004,2]
[310991824,1704843041925,-150.92,0.0004,2]
[310991826,1704843041935,-150.92,0.0004,2]
[310991828,1704843041945,-150.92,0.0004,2]
[310991831,1704843041956,-150.92,0.0004,2]
[310991832,1704843041966,-150.92,0.0004,2]
[310991834,1704843041976,-150.92,0.0004,2]
[310991836,1704843041985,-150.92,0.0004,2]
[310991838,1704843041994,-150.92,0.0004,2]
[310991841,1704843042004,-150.92,0.0004,2]
[310991843,1704843042013,-150.92,0.0004,2]
[310991845,1704843042022,-150.92,0.0004,2]
[310991847,1704843042031,-150.92,0.0004,2]
[310991849,1704843042039,-150.92,0.0004,2]
[310991851,1704843042049,-150.92,0.0004,2]
[310991853,1704843042058,-150.92,0.0004,2]
[310991855,1704843042067,-150.92,0.0004,2]
[310991857,1704843042076,-150.92,0.0004,2]
[310991859,1704843042085,-150.92,0.0004,2]
[310991861,1704843042094,-150.92,0.0004,2]
[310991863,1704843042103,-150.92,0.0004,2]
[310991865,1704843042112,-150.92,0.0004,2]
[310991867,1704843042121,-150.92,0.0004,2]
[310991869,1704843042130,-150.92,0.0004,2]
[310991871,1704843042139,-150.92,0.0004,2]
[310991873,1704843042148,-150.92,0.0004,2]
[310991875,1704843042157,-150.92,0.0004,2]
[310991877,1704843042167,-150.92,0.0004,2]
[310991879,1704843042176,-150.92,0.0004,2]
[310991881,1704843042186,-150.92,0.0004,2]
[310991883,1704843042195,-150.92,0.0004,2]
[310991885,1704843042204,-150.92,0.0004,2]
[310991887,1704843042213,-150.92,0.0004,2]
[310991889,1704843042222,-150.92,0.0004,2]
[310991891,1704843042231,-150.92,0.0004,2]
[310991893,1704843042245,-150.92,0.0004,2]
[310991895,1704843042255,-150.92,0.0004,2]
[310991897,1704843042265,-150.92,0.0004,2]
[310991899,1704843042274,-150.92,0.0004,2]
[310991901,1704843042285,-150.92,0.0004,2]
[310991903,1704843042294,-150.92,0.0004,2]
[310991905,1704843042305,-150.92,0.0004,2]
[310991907,1704843042316,-150.92,0.0004,2]
[310991909,1704843042329,-150.92,0.0004,2]
[310991911,1704843042338,-150.92,0.0004,2]
[310991913,1704843042348,-150.92,0.0004,2]
[310991915,1704843042357,-150.92,0.0004,2]
[310991917,1704843042367,-150.92,0.0004,2]
[310991919,1704843042376,-360.0,0.0004,12]
[310991921,1704843042385,-456.4011,0.00040048,8]
[310991923,1704843042395,-689.995148,0.00040083,2]
[310991926,1704843042403,-3077.88,0.00040118,2]
[310991929,1704843042413,-456.4011,0.00040148,8]
[310991932,1704843042422,-586.032175,0.00040149,2]
[310991935,1704843042431,-850.87,0.00040233,2]
[310991938,1704843042440,-938.33,0.00040233,2]
[310991941,1704843042449,-456.4011,0.00040248,8]
[310991944,1704843042459,-150.0,0.00040259,2]
[310991946,1704843042468,-156.82,0.00040264,2]
[310991948,1704843042478,-716.98147879,0.00040318,14]
[310991950,1704843042487,-1000.0,0.00040329,10]
[310991952,1704843042496,-456.4011,0.00040348,8]
[310991954,1704843042509,-602.39,0.00040349,15]
[310991958,1704843042518,-586.032175,0.00040388,2]